[Event "Late-Titled-Tuesday-Blitz-September-26-2023"]
[Site "Chess.com"]
[Date "2023.09.26"]
[Round "2"]
[White "hansen"]
[Black "Saif_Malek04"]
[Result "1-0"]
[WhiteElo "2935"]
[BlackElo "2591"]
[TimeControl "180+1"]
[EndTime "14:18:19 PDT"]
[Termination "hansen won by checkmate"]

1. c4 {[%clk 0:03:00]} 1... c6 {[%clk 0:03:00.5]} 2. e4 {[%clk 0:02:52.4]} 2...
d6 {[%clk 0:03:01.4]} 3. d4 {[%clk 0:02:50.8]} 3... Nd7 {[%clk 0:03:02.1]} 4.
Nc3 {[%clk 0:02:50.7]} 4... e5 {[%clk 0:03:01.9]} 5. Be3 {[%clk 0:02:37.3]} 5...
Ngf6 {[%clk 0:03:01.7]} 6. f3 {[%clk 0:02:37.8]} 6... Qc7 {[%clk 0:03:01.6]} 7.
Qd2 {[%clk 0:02:37.8]} 7... Be7 {[%clk 0:03:01.4]} 8. Nge2 {[%clk 0:02:36.9]}
8... b6 {[%clk 0:03:01.9]} 9. Ng3 {[%clk 0:02:35.2]} 9... Bb7 {[%clk 0:02:59.4]}
10. Nf5 {[%clk 0:02:35.2]} 10... Bf8 {[%clk 0:02:59.4]} 11. Rd1 {[%clk
0:02:30.5]} 11... O-O-O {[%clk 0:02:52.3]} 12. dxe5 {[%clk 0:02:28.5]} 12...
dxe5 {[%clk 0:02:45.2]} 13. Nd6+ {[%clk 0:02:28.4]} 13... Bxd6 {[%clk
0:02:45.2]} 14. Qxd6 {[%clk 0:02:29.3]} 14... Qxd6 {[%clk 0:02:45.7]} 15. Rxd6
{[%clk 0:02:30.2]} 15... Nb8 {[%clk 0:02:41.7]} 16. Rd2 {[%clk 0:02:17.3]} 16...
Rxd2 {[%clk 0:02:39.8]} 17. Kxd2 {[%clk 0:02:17.5]} 17... Rd8+ {[%clk
0:02:39.6]} 18. Kc2 {[%clk 0:02:18.2]} 18... Nbd7 {[%clk 0:02:34.2]} 19. c5
{[%clk 0:01:46.5]} 19... b5 {[%clk 0:02:09.9]} 20. a4 {[%clk 0:01:40.9]} 20...
a6 {[%clk 0:02:09]} 21. b4 {[%clk 0:01:21.5]} 21... Nf8 {[%clk 0:02:07.4]} 22.
Be2 {[%clk 0:01:19.5]} 22... Ne6 {[%clk 0:02:06.5]} 23. Kb2 {[%clk 0:01:20.2]}
23... Nd4 {[%clk 0:02:05.6]} 24. Bd1 {[%clk 0:01:20.3]} 24... Kc7 {[%clk
0:02:02]} 25. h4 {[%clk 0:01:14.2]} 25... Bc8 {[%clk 0:01:39.1]} 26. g4 {[%clk
0:01:14.2]} 26... Ne6 {[%clk 0:01:11.2]} 27. h5 {[%clk 0:01:00.8]} 27... Nf4
{[%clk 0:00:51.4]} 28. Bxf4 {[%clk 0:00:43.2]} 28... exf4 {[%clk 0:00:52.2]} 29.
Ne2 {[%clk 0:00:42.8]} 29... bxa4 {[%clk 0:00:52.6]} 30. Nxf4 {[%clk 0:00:37.9]}
30... Rd2+ {[%clk 0:00:49.9]} 31. Kc3 {[%clk 0:00:36.8]} 31... Ra2 {[%clk
0:00:44.9]} 32. h6 {[%clk 0:00:30.7]} 32... g6 {[%clk 0:00:44.5]} 33. Nh3 {[%clk
0:00:27.4]} 33... a3 {[%clk 0:00:28.6]} 34. Bb3 {[%clk 0:00:24.1]} 34... Re2
{[%clk 0:00:20.3]} 35. Ng5 {[%clk 0:00:21.6]} 35... Re3+ {[%clk 0:00:18.4]} 36.
Kc2 {[%clk 0:00:20.7]} 36... Re2+ {[%clk 0:00:18.3]} 37. Kd3 {[%clk 0:00:20.7]}
37... Rb2 {[%clk 0:00:18.4]} 38. Kc3 {[%clk 0:00:21.2]} 38... Re2 {[%clk
0:00:18.4]} 39. Bxf7 {[%clk 0:00:14]} 39... Re3+ {[%clk 0:00:15.6]} 40. Kd2
{[%clk 0:00:12.4]} 40... Nxg4 {[%clk 0:00:12.9]} 41. fxg4 {[%clk 0:00:08.7]}
41... Rg3 {[%clk 0:00:13.2]} 42. Nxh7 {[%clk 0:00:07.6]} 42... a2 {[%clk
0:00:13.7]} 43. Bxa2 {[%clk 0:00:06.1]} 43... Rg2+ {[%clk 0:00:14.3]} 44. Ke3
{[%clk 0:00:06.7]} 44... Rxa2 {[%clk 0:00:15.2]} 45. Ng5 {[%clk 0:00:06.3]}
45... Ra3+ {[%clk 0:00:14.5]} 46. Kf4 {[%clk 0:00:06.5]} 46... Ra1 {[%clk
0:00:14.8]} 47. Rxa1 {[%clk 0:00:04.1]} 47... Be6 {[%clk 0:00:15.6]} 48. Nxe6+
{[%clk 0:00:04.3]} 48... Kd7 {[%clk 0:00:15.7]} 49. Ng5 {[%clk 0:00:05.2]} 49...
Ke7 {[%clk 0:00:16.2]} 50. h7 {[%clk 0:00:06.1]} 50... a5 {[%clk 0:00:16.2]} 51.
h8=Q {[%clk 0:00:06.7]} 51... a4 {[%clk 0:00:17.1]} 52. Qg7+ {[%clk 0:00:07.2]}
52... Kd8 {[%clk 0:00:17.4]} 53. Rh1 {[%clk 0:00:07.6]} 53... Kc8 {[%clk
0:00:18.3]} 54. Rh8# {[%clk 0:00:08.2]} 1-0

[Event "Late-Titled-Tuesday-Blitz-September-26-2023"]
[Site "Chess.com"]
[Date "2023.09.26"]
[Round "2"]
[White "PepeCuenca"]
[Black "RCone"]
[Result "1/2-1/2"]
[WhiteElo "2698"]
[BlackElo "2410"]
[TimeControl "180+1"]
[EndTime "14:18:19 PDT"]
[Termination "Game drawn by repetition"]

1. c4 {[%clk 0:03:00.9]} 1... d6 {[%clk 0:02:58.7]} 2. Nc3 {[%clk 0:02:57.3]}
2... g6 {[%clk 0:02:54.6]} 3. g3 {[%clk 0:02:54.3]} 3... Bg7 {[%clk 0:02:54.3]}
4. Bg2 {[%clk 0:02:54.8]} 4... e5 {[%clk 0:02:54.3]} 5. e4 {[%clk 0:02:54.7]}
5... Nc6 {[%clk 0:02:54.3]} 6. Nge2 {[%clk 0:02:54.2]} 6... h5 {[%clk
0:02:53.4]} 7. h4 {[%clk 0:02:51.9]} 7... Bg4 {[%clk 0:02:53.1]} 8. f3 {[%clk
0:02:50]} 8... Be6 {[%clk 0:02:52.5]} 9. d3 {[%clk 0:02:48.7]} 9... Qd7 {[%clk
0:02:46.8]} 10. O-O {[%clk 0:02:45.7]} 10... f5 {[%clk 0:02:30]} 11. Nd5 {[%clk
0:02:37.2]} 11... Nd4 {[%clk 0:02:14.1]} 12. Nxd4 {[%clk 0:02:29.8]} 12... exd4
{[%clk 0:02:13.7]} 13. Nf4 {[%clk 0:02:13.7]} 13... fxe4 {[%clk 0:02:09.7]} 14.
fxe4 {[%clk 0:01:54.6]} 14... Ne7 {[%clk 0:02:07.8]} 15. Nxe6 {[%clk 0:01:49.7]}
15... Qxe6 {[%clk 0:02:07.7]} 16. Kh2 {[%clk 0:01:50.2]} 16... Rf8 {[%clk
0:01:51.3]} 17. Bf4 {[%clk 0:01:36.2]} 17... Nc6 {[%clk 0:01:44.8]} 18. Bh3
{[%clk 0:01:31.1]} 18... Qe7 {[%clk 0:01:44.8]} 19. Qa4 {[%clk 0:01:19.5]} 19...
Bf6 {[%clk 0:01:05.8]} 20. b4 {[%clk 0:01:12.8]} 20... Kd8 {[%clk 0:01:02.7]}
21. Bh6 {[%clk 0:00:46.4]} 21... Rf7 {[%clk 0:00:58.8]} 22. Bf4 {[%clk 0:00:25]}
22... Ne5 {[%clk 0:00:52]} 23. Bxe5 {[%clk 0:00:25.2]} 23... dxe5 {[%clk
0:00:51.9]} 24. Qb5 {[%clk 0:00:23.2]} 24... c6 {[%clk 0:00:51.2]} 25. Qa5+
{[%clk 0:00:21.4]} 25... b6 {[%clk 0:00:50.6]} 26. Qa4 {[%clk 0:00:20.4]} 26...
Kc7 {[%clk 0:00:50.6]} 27. Rf3 {[%clk 0:00:16.7]} 27... Bg7 {[%clk 0:00:45.5]}
28. Raf1 {[%clk 0:00:16.7]} 28... Rxf3 {[%clk 0:00:43.1]} 29. Rxf3 {[%clk
0:00:17.6]} 29... a5 {[%clk 0:00:40.4]} 30. b5 {[%clk 0:00:11.9]} 30... c5
{[%clk 0:00:39.2]} 31. Qd1 {[%clk 0:00:11]} 31... Rf8 {[%clk 0:00:39.2]} 32. Qf1
{[%clk 0:00:10.8]} 32... Rxf3 {[%clk 0:00:38.3]} 33. Qxf3 {[%clk 0:00:11.5]}
33... Qf6 {[%clk 0:00:38.4]} 34. Qxf6 {[%clk 0:00:07.5]} 34... Bxf6 {[%clk
0:00:37.9]} 35. Be6 {[%clk 0:00:08.1]} 35... g5 {[%clk 0:00:36.1]} 36. Kh3
{[%clk 0:00:08.3]} 36... gxh4 {[%clk 0:00:23.7]} 37. gxh4 {[%clk 0:00:09.2]}
37... Kd6 {[%clk 0:00:22.8]} 38. Bf7 {[%clk 0:00:09.5]} 38... Bg7 {[%clk
0:00:20.2]} 39. Bxh5 {[%clk 0:00:09.2]} 39... Ke6 {[%clk 0:00:20.8]} 40. Kg4
{[%clk 0:00:08.5]} 40... Bh6 {[%clk 0:00:19.8]} 41. Be8 {[%clk 0:00:07.3]} 41...
Kf6 {[%clk 0:00:20]} 42. Kh5 {[%clk 0:00:06.9]} 42... Be3 {[%clk 0:00:18.7]} 43.
Bd7 {[%clk 0:00:06.8]} 43... Bf4 {[%clk 0:00:16.6]} 44. Bf5 {[%clk 0:00:06.9]}
44... Be3 {[%clk 0:00:16.7]} 45. a4 {[%clk 0:00:07.5]} 45... Bf4 {[%clk
0:00:16.1]} 46. Bh3 {[%clk 0:00:07.7]} 46... Be3 {[%clk 0:00:16.2]} 47. Kg4
{[%clk 0:00:07.5]} 47... Bf2 {[%clk 0:00:14.9]} 48. Kh5 {[%clk 0:00:06.1]} 48...
Be3 {[%clk 0:00:15.1]} 49. Bf5 {[%clk 0:00:06.7]} 49... Bf2 {[%clk 0:00:14.7]}
50. Kg4 {[%clk 0:00:04.6]} 50... Be3 {[%clk 0:00:14.4]} 51. Kh5 {[%clk
0:00:04.7]} 1/2-1/2

[Event "Late-Titled-Tuesday-Blitz-September-26-2023"]
[Site "Chess.com"]
[Date "2023.09.26"]
[Round "2"]
[White "Dewarfd"]
[Black "Korchmar_Vasiliy"]
[Result "0-1"]
[WhiteElo "2223"]
[BlackElo "2671"]
[TimeControl "180+1"]
[EndTime "14:18:20 PDT"]
[Termination "Korchmar_Vasiliy won by resignation"]

1. d4 {[%clk 0:03:00]} 1... Nf6 {[%clk 0:02:59]} 2. e3 {[%clk 0:03:00]} 2... d5
{[%clk 0:02:59.1]} 3. Nf3 {[%clk 0:03:00.1]} 3... c5 {[%clk 0:02:42.9]} 4. dxc5
{[%clk 0:02:58.8]} 4... e6 {[%clk 0:02:31.7]} 5. c4 {[%clk 0:02:56.3]} 5... Bxc5
{[%clk 0:02:30.9]} 6. Nc3 {[%clk 0:02:49.1]} 6... O-O {[%clk 0:02:30.4]} 7. cxd5
{[%clk 0:02:48.8]} 7... exd5 {[%clk 0:02:30.3]} 8. Be2 {[%clk 0:02:47.5]} 8...
Nc6 {[%clk 0:02:30.3]} 9. O-O {[%clk 0:02:47.2]} 9... Bg4 {[%clk 0:02:21.9]} 10.
h3 {[%clk 0:02:43.1]} 10... Bh5 {[%clk 0:02:20.4]} 11. Nb5 {[%clk 0:02:39.3]}
11... a6 {[%clk 0:02:08.3]} 12. Nbd4 {[%clk 0:02:38.5]} 12... Rc8 {[%clk
0:02:04.8]} 13. Nxc6 {[%clk 0:02:34.6]} 13... Rxc6 {[%clk 0:02:02]} 14. b3
{[%clk 0:02:25.5]} 14... Ne4 {[%clk 0:01:50.3]} 15. Bb2 {[%clk 0:02:22]} 15...
Rh6 {[%clk 0:01:44.6]} 16. Nd4 {[%clk 0:02:08]} 16... Bg6 {[%clk 0:01:39.6]} 17.
Bg4 {[%clk 0:01:44.4]} 17... Bd6 {[%clk 0:01:22.1]} 18. Rc1 {[%clk 0:01:37.9]}
18... Qf6 {[%clk 0:01:02.3]} 19. Qf3 {[%clk 0:01:27]} 19... Qe5 {[%clk
0:01:00.6]} 20. Qf4 {[%clk 0:01:18.9]} 20... Qxf4 {[%clk 0:00:57.7]} 21. exf4
{[%clk 0:01:19.7]} 21... Bxf4 {[%clk 0:00:58.5]} 22. Rc8 {[%clk 0:01:16]} 22...
Rxc8 {[%clk 0:00:25.8]} 23. Bxc8 {[%clk 0:01:16.5]} 23... Nd6 {[%clk 0:00:26.3]}
24. Bg4 {[%clk 0:01:07.1]} 24... Be4 {[%clk 0:00:23.8]} 25. g3 {[%clk
0:01:02.8]} 25... Be5 {[%clk 0:00:20.2]} 26. Rc1 {[%clk 0:00:54.3]} 26... f5
{[%clk 0:00:19.8]} 27. Nxf5 {[%clk 0:00:49]} 27... Bxb2 {[%clk 0:00:19.9]} 28.
Nxh6+ {[%clk 0:00:29.6]} 28... gxh6 {[%clk 0:00:20.8]} 29. Rd1 {[%clk
0:00:25.4]} 29... d4 {[%clk 0:00:20.1]} 30. Kf1 {[%clk 0:00:20.9]} 30... Bc2
{[%clk 0:00:19.8]} 31. Rd2 {[%clk 0:00:19.7]} 31... d3 {[%clk 0:00:19.9]} 32.
Be6+ {[%clk 0:00:18.4]} 32... Kg7 {[%clk 0:00:19.4]} 33. Bc4 {[%clk 0:00:17.9]}
33... Nxc4 {[%clk 0:00:19.8]} 34. bxc4 {[%clk 0:00:18.4]} 34... Bc3 {[%clk
0:00:20.4]} 35. Ke1 {[%clk 0:00:18.7]} 35... Kf6 {[%clk 0:00:19.6]} 36. f3
{[%clk 0:00:18]} 36... Ke5 {[%clk 0:00:19.8]} 37. f4+ {[%clk 0:00:12.5]} 37...
Ke4 {[%clk 0:00:19.4]} 38. h4 {[%clk 0:00:12.8]} 38... Ke3 {[%clk 0:00:19.9]}
39. f5 {[%clk 0:00:10]} 39... Ba4 {[%clk 0:00:18.1]} 40. g4 {[%clk 0:00:08.7]}
40... Bxd2+ {[%clk 0:00:17.1]} 41. Kf1 {[%clk 0:00:08.5]} 41... Bc3 {[%clk
0:00:15.2]} 42. g5 {[%clk 0:00:08.7]} 42... hxg5 {[%clk 0:00:15.4]} 43. hxg5
{[%clk 0:00:09.6]} 43... d2 {[%clk 0:00:16.1]} 44. g6 {[%clk 0:00:08.3]} 44...
d1=Q+ {[%clk 0:00:17]} 45. Kg2 {[%clk 0:00:08.4]} 45... Bc6+ {[%clk 0:00:17.9]}
46. Kg3 {[%clk 0:00:08.4]} 46... Be5+ {[%clk 0:00:17.7]} 47. Kh4 {[%clk
0:00:08.2]} 47... Bf6+ {[%clk 0:00:17.1]} 48. Kg3 {[%clk 0:00:06.4]} 48... Qf3+
{[%clk 0:00:17.7]} 0-1

[Event "Late-Titled-Tuesday-Blitz-September-26-2023"]
[Site "Chess.com"]
[Date "2023.09.26"]
[Round "2"]
[White "IngOscarArdila"]
[Black "Jarming"]
[Result "0-1"]
[WhiteElo "2378"]
[BlackElo "2650"]
[TimeControl "180+1"]
[EndTime "14:18:20 PDT"]
[Termination "Jarming won by resignation"]

1. d4 {[%clk 0:02:59.7]} 1... Nf6 {[%clk 0:02:57.2]} 2. c4 {[%clk 0:03:00]} 2...
g6 {[%clk 0:02:57.3]} 3. Nc3 {[%clk 0:03:00.4]} 3... d5 {[%clk 0:02:57.3]} 4.
Nf3 {[%clk 0:03:00.3]} 4... Bg7 {[%clk 0:02:57.1]} 5. e3 {[%clk 0:03:00.6]} 5...
O-O {[%clk 0:02:57.5]} 6. Be2 {[%clk 0:03:00.3]} 6... c5 {[%clk 0:02:57.2]} 7.
cxd5 {[%clk 0:03:00.3]} 7... Nxd5 {[%clk 0:02:55.8]} 8. O-O {[%clk 0:03:00.4]}
8... cxd4 {[%clk 0:02:54.9]} 9. Nxd4 {[%clk 0:03:00.6]} 9... Nc6 {[%clk
0:02:54.9]} 10. Nxd5 {[%clk 0:02:58.5]} 10... Qxd5 {[%clk 0:02:50.1]} 11. Bf3
{[%clk 0:02:58.7]} 11... Qc4 {[%clk 0:02:50.3]} 12. Nxc6 {[%clk 0:02:54.3]}
12... bxc6 {[%clk 0:02:51.2]} 13. b3 {[%clk 0:02:35.3]} 13... Qb5 {[%clk
0:02:47.7]} 14. Rb1 {[%clk 0:02:34.2]} 14... Ba6 {[%clk 0:02:46.5]} 15. Re1
{[%clk 0:02:31.2]} 15... Qd3 {[%clk 0:02:45.2]} 16. Ba3 {[%clk 0:02:25.1]} 16...
Bc3 {[%clk 0:02:37.9]} 17. Bxe7 {[%clk 0:01:59.5]} 17... Bxe1 {[%clk 0:02:29.4]}
18. Qxe1 {[%clk 0:01:54.2]} 18... Rfc8 {[%clk 0:02:20.6]} 19. Rd1 {[%clk
0:01:52.1]} 19... Qf5 {[%clk 0:02:19.9]} 20. Qc3 {[%clk 0:01:29.2]} 20... Qe6
{[%clk 0:02:18.4]} 21. Bf6 {[%clk 0:01:27]} 21... Rf8 {[%clk 0:02:02.1]} 22. h3
{[%clk 0:01:26.2]} 22... h5 {[%clk 0:01:56.5]} 23. a3 {[%clk 0:00:46.8]} 23...
Kh7 {[%clk 0:01:52.2]} 24. b4 {[%clk 0:00:46.7]} 24... Bb5 {[%clk 0:01:47.7]}
25. Rd2 {[%clk 0:00:40.4]} 25... a6 {[%clk 0:01:41.6]} 26. Rd1 {[%clk
0:00:40.3]} 26... Ra7 {[%clk 0:01:40.8]} 27. Bg7 {[%clk 0:00:33.4]} 27... Re8
{[%clk 0:01:36.4]} 28. Bf6 {[%clk 0:00:32.1]} 28... Rd7 {[%clk 0:01:34.7]} 29.
Rxd7 {[%clk 0:00:25.6]} 29... Qxd7 {[%clk 0:01:35.4]} 30. Bh8 {[%clk 0:00:26]}
30... Rxh8 {[%clk 0:01:32.3]} 31. Qf6 {[%clk 0:00:23.8]} 31... Rd8 {[%clk
0:01:25.8]} 32. g3 {[%clk 0:00:22.3]} 32... Re8 {[%clk 0:01:19.6]} 33. g4 {[%clk
0:00:22.2]} 33... Qe7 {[%clk 0:01:16.2]} 34. Qf4 {[%clk 0:00:22.1]} 34... hxg4
{[%clk 0:01:16]} 35. hxg4 {[%clk 0:00:22]} 35... Qe5 {[%clk 0:01:13.4]} 36.
Qxf7+ {[%clk 0:00:21.9]} 36... Kh6 {[%clk 0:01:10.7]} 37. Kg2 {[%clk 0:00:17.2]}
37... Rh8 {[%clk 0:01:01.8]} 38. Qf4+ {[%clk 0:00:10.8]} 38... Qxf4 {[%clk
0:01:01.1]} 39. exf4 {[%clk 0:00:11.7]} 39... Rd8 {[%clk 0:01:00.8]} 40. g5+
{[%clk 0:00:11.3]} 40... Kg7 {[%clk 0:01:00.9]} 41. Bg4 {[%clk 0:00:11.8]} 41...
Rd3 {[%clk 0:00:59.9]} 42. f3 {[%clk 0:00:11.6]} 42... Rxa3 {[%clk 0:00:59.8]}
43. f5 {[%clk 0:00:11.2]} 43... gxf5 {[%clk 0:00:58.7]} 44. Bxf5 {[%clk
0:00:12.1]} 44... Rb3 {[%clk 0:00:59]} 45. f4 {[%clk 0:00:11.3]} 45... Rxb4
{[%clk 0:00:59.4]} 46. Kg3 {[%clk 0:00:11.9]} 46... a5 {[%clk 0:00:58.9]} 47.
Be6 {[%clk 0:00:12]} 47... Be2 {[%clk 0:00:56]} 48. f5 {[%clk 0:00:11.8]} 48...
Rg4+ {[%clk 0:00:56.1]} 49. Kf2 {[%clk 0:00:11.9]} 49... Rxg5 {[%clk 0:00:57]}
50. Kxe2 {[%clk 0:00:12.1]} 50... a4 {[%clk 0:00:57.6]} 51. Kd3 {[%clk
0:00:12.3]} 51... a3 {[%clk 0:00:58]} 52. Kc3 {[%clk 0:00:12.6]} 52... Rg3+
{[%clk 0:00:58.3]} 53. Kb4 {[%clk 0:00:12]} 53... Kf6 {[%clk 0:00:56.8]} 54. Kc5
{[%clk 0:00:11.6]} 54... Re3 {[%clk 0:00:53.1]} 55. Kd6 {[%clk 0:00:11.3]} 55...
c5 {[%clk 0:00:47.3]} 56. Bc4 {[%clk 0:00:05.8]} 56... Rc3 {[%clk 0:00:46.9]}
57. Bd5 {[%clk 0:00:04.6]} 57... c4 {[%clk 0:00:46.9]} 58. Be6 {[%clk
0:00:04.4]} 58... a2 {[%clk 0:00:43.9]} 0-1

[Event "Late-Titled-Tuesday-Blitz-September-26-2023"]
[Site "Chess.com"]
[Date "2023.09.26"]
[Round "2"]
[White "Giorno"]
[Black "Garmendiarov"]
[Result "1-0"]
[WhiteElo "2500"]
[BlackElo "2298"]
[TimeControl "180+1"]
[EndTime "14:18:21 PDT"]
[Termination "Giorno won by resignation"]

1. d4 {[%clk 0:03:00.9]} 1... Nf6 {[%clk 0:03:00]} 2. Bf4 {[%clk 0:02:59.8]}
2... g6 {[%clk 0:03:00.1]} 3. Nf3 {[%clk 0:02:58]} 3... Bg7 {[%clk 0:03:00.3]}
4. e3 {[%clk 0:02:56.6]} 4... O-O {[%clk 0:02:59.6]} 5. h3 {[%clk 0:02:54.9]}
5... d6 {[%clk 0:03:00]} 6. Be2 {[%clk 0:02:53.6]} 6... Nc6 {[%clk 0:03:00]} 7.
Bh2 {[%clk 0:02:52.9]} 7... Nd7 {[%clk 0:02:59.9]} 8. O-O {[%clk 0:02:51.8]}
8... e5 {[%clk 0:03:00.1]} 9. dxe5 {[%clk 0:02:48.1]} 9... dxe5 {[%clk 0:03:01]}
10. Nc3 {[%clk 0:02:47.2]} 10... f5 {[%clk 0:02:53.4]} 11. Bc4+ {[%clk
0:02:42.8]} 11... Kh8 {[%clk 0:02:53.2]} 12. Bb3 {[%clk 0:02:36.8]} 12... f4
{[%clk 0:02:43.8]} 13. exf4 {[%clk 0:02:33.3]} 13... exf4 {[%clk 0:02:44.7]} 14.
Qd5 {[%clk 0:02:24.2]} 14... Nde5 {[%clk 0:02:27.7]} 15. Nxe5 {[%clk 0:02:22.5]}
15... Bxe5 {[%clk 0:02:11.7]} 16. Qxd8 {[%clk 0:02:16.4]} 16... Rxd8 {[%clk
0:02:11.3]} 17. Rad1 {[%clk 0:02:10.9]} 17... Bf5 {[%clk 0:02:09.7]} 18. Nd5
{[%clk 0:02:06.4]} 18... Nd4 {[%clk 0:01:56.8]} 19. c3 {[%clk 0:01:51.3]} 19...
Nxb3 {[%clk 0:01:51.7]} 20. axb3 {[%clk 0:01:52.2]} 20... Bc2 {[%clk 0:01:33.2]}
21. Rc1 {[%clk 0:01:39.3]} 21... Bd3 {[%clk 0:01:26.1]} 22. Nxf4 {[%clk
0:01:31.8]} 22... Bxf4 {[%clk 0:01:19.1]} 23. Bxf4 {[%clk 0:01:30]} 23... Bxf1
{[%clk 0:01:19.4]} 24. Bxc7 {[%clk 0:01:27.7]} 24... Rd2 {[%clk 0:01:11.5]} 25.
Kxf1 {[%clk 0:01:23.7]} 25... Re8 {[%clk 0:00:57]} 26. Bf4 {[%clk 0:01:12.1]}
26... Rxb2 {[%clk 0:00:53.7]} 27. b4 {[%clk 0:01:12]} 27... Ree2 {[%clk
0:00:51.4]} 28. Be3 {[%clk 0:01:11.3]} 28... Rec2 {[%clk 0:00:41.5]} 29. Rd1
{[%clk 0:01:07.6]} 29... Kg8 {[%clk 0:00:30.4]} 30. Bxa7 {[%clk 0:01:06.1]}
30... Rd2 {[%clk 0:00:16.6]} 31. Re1 {[%clk 0:01:00.1]} 31... Rbc2 {[%clk
0:00:12.4]} 32. Bd4 {[%clk 0:00:59.5]} 32... Kf7 {[%clk 0:00:11.6]} 33. h4
{[%clk 0:00:51.3]} 33... h6 {[%clk 0:00:10.5]} 34. g4 {[%clk 0:00:49.7]} 34...
h5 {[%clk 0:00:09.1]} 35. gxh5 {[%clk 0:00:42.2]} 35... gxh5 {[%clk 0:00:10]}
36. Re5 {[%clk 0:00:37.3]} 36... Kg6 {[%clk 0:00:09.9]} 37. Kg2 {[%clk
0:00:32.2]} 37... Rd3 {[%clk 0:00:08.8]} 38. b5 {[%clk 0:00:24.6]} 38... Rb2
{[%clk 0:00:08.2]} 39. b6 {[%clk 0:00:20.3]} 39... Rdd2 {[%clk 0:00:07.9]} 40.
Re7 {[%clk 0:00:17]} 40... Re2 {[%clk 0:00:06.7]} 41. Rxb7 {[%clk 0:00:15.7]}
41... Re5 {[%clk 0:00:07.2]} 42. Bxe5 {[%clk 0:00:15.1]} 42... Kf5 {[%clk
0:00:07.8]} 43. Bd4 {[%clk 0:00:14.9]} 43... Kg4 {[%clk 0:00:08.2]} 44. Rg7+
{[%clk 0:00:14.6]} 44... Kf5 {[%clk 0:00:08]} 45. b7 {[%clk 0:00:14.3]} 45...
Ke6 {[%clk 0:00:08]} 46. Ba7 {[%clk 0:00:14.2]} 46... Kf6 {[%clk 0:00:07.7]} 47.
Rh7 {[%clk 0:00:12.8]} 47... Kg6 {[%clk 0:00:07.7]} 48. Rc7 {[%clk 0:00:12.7]}
48... Rxb7 {[%clk 0:00:07.3]} 49. Rxb7 {[%clk 0:00:12.5]} 1-0

[Event "Late-Titled-Tuesday-Blitz-September-26-2023"]
[Site "Chess.com"]
[Date "2023.09.26"]
[Round "2"]
[White "Taran2004"]
[Black "canary2016"]
[Result "1-0"]
[WhiteElo "2439"]
[BlackElo "2137"]
[TimeControl "180+1"]
[EndTime "14:18:21 PDT"]
[Termination "Taran2004 won on time"]

1. e4 {[%clk 0:03:00.9]} 1... c5 {[%clk 0:02:56.2]} 2. Nf3 {[%clk 0:03:00.4]}
2... d6 {[%clk 0:02:54.9]} 3. d4 {[%clk 0:02:59.1]} 3... cxd4 {[%clk 0:02:55.2]}
4. Qxd4 {[%clk 0:02:56.3]} 4... Nf6 {[%clk 0:02:53.8]} 5. e5 {[%clk 0:02:56.2]}
5... dxe5 {[%clk 0:02:49.7]} 6. Qxd8+ {[%clk 0:02:57.1]} 6... Kxd8 {[%clk
0:02:48.7]} 7. Nxe5 {[%clk 0:02:57.2]} 7... Be6 {[%clk 0:02:43.7]} 8. Bb5 {[%clk
0:02:45]} 8... Nbd7 {[%clk 0:02:25.4]} 9. Nd3 {[%clk 0:02:41.6]} 9... Rc8 {[%clk
0:02:19.1]} 10. c3 {[%clk 0:02:34.6]} 10... a6 {[%clk 0:02:05.9]} 11. Ba4 {[%clk
0:02:33.3]} 11... Bf5 {[%clk 0:01:55.1]} 12. Nf4 {[%clk 0:02:27.6]} 12... e6
{[%clk 0:01:42]} 13. O-O {[%clk 0:02:24.4]} 13... Bd6 {[%clk 0:01:37.5]} 14. Rd1
{[%clk 0:02:22.9]} 14... Ke7 {[%clk 0:01:35.7]} 15. Ne2 {[%clk 0:01:53.5]} 15...
Rhd8 {[%clk 0:01:21.8]} 16. Bg5 {[%clk 0:01:47.3]} 16... h6 {[%clk 0:01:15.5]}
17. Bh4 {[%clk 0:01:47.3]} 17... g5 {[%clk 0:01:14.6]} 18. Bg3 {[%clk
0:01:47.3]} 18... Bxg3 {[%clk 0:01:09.6]} 19. Nxg3 {[%clk 0:01:48.2]} 19... Bg6
{[%clk 0:01:09.9]} 20. Nd2 {[%clk 0:01:46.1]} 20... Nc5 {[%clk 0:01:07.1]} 21.
Bb3 {[%clk 0:01:44.2]} 21... Rd7 {[%clk 0:01:02.2]} 22. Nc4 {[%clk 0:01:36.5]}
22... Rcd8 {[%clk 0:00:49.5]} 23. Rxd7+ {[%clk 0:01:33.7]} 23... Rxd7 {[%clk
0:00:48.9]} 24. Rd1 {[%clk 0:01:15]} 24... Rxd1+ {[%clk 0:00:19.8]} 25. Bxd1
{[%clk 0:01:14.7]} 25... Nd3 {[%clk 0:00:18.6]} 26. Be2 {[%clk 0:00:49.9]} 26...
b5 {[%clk 0:00:17.7]} 27. Bxd3 {[%clk 0:00:50.1]} 27... Bxd3 {[%clk 0:00:15.5]}
28. Ne5 {[%clk 0:00:50.4]} 28... Bh7 {[%clk 0:00:11.8]} 29. Ne2 {[%clk
0:00:49.2]} 29... Ne4 {[%clk 0:00:08.7]} 30. Nd4 {[%clk 0:00:49.3]} 30... Nc5
{[%clk 0:00:05.5]} 31. Nec6+ {[%clk 0:00:46.4]} 31... Kf6 {[%clk 0:00:05.5]} 32.
Nb3 {[%clk 0:00:41]} 32... Nxb3 {[%clk 0:00:03.9]} 33. axb3 {[%clk 0:00:41.9]}
33... Bc2 {[%clk 0:00:02.5]} 34. b4 {[%clk 0:00:42.2]} 34... Bd3 {[%clk
0:00:01.8]} 35. Nb8 {[%clk 0:00:38.9]} 35... Ke5 {[%clk 0:00:01.7]} 36. Nxa6
{[%clk 0:00:39]} 36... Kd6 {[%clk 0:00:01.7]} 37. Nc5 {[%clk 0:00:38.2]} 37...
Bc4 {[%clk 0:00:01.9]} 38. f3 {[%clk 0:00:36.2]} 38... Kc6 {[%clk 0:00:02.1]}
39. Kf2 {[%clk 0:00:36.5]} 39... Kd5 {[%clk 0:00:02.4]} 40. Ke3 {[%clk
0:00:36.7]} 40... Kd6 {[%clk 0:00:02.9]} 41. g3 {[%clk 0:00:35.2]} 41... f5
{[%clk 0:00:03.2]} 42. f4 {[%clk 0:00:30.7]} 42... Ke7 {[%clk 0:00:03.3]} 43.
Kd4 {[%clk 0:00:29.9]} 43... Kd6 {[%clk 0:00:03.8]} 44. Nb7+ {[%clk 0:00:24.8]}
44... Ke7 {[%clk 0:00:03.5]} 45. Ke5 {[%clk 0:00:24.2]} 45... Bd5 {[%clk
0:00:03.8]} 46. Nd6 {[%clk 0:00:22]} 46... gxf4 {[%clk 0:00:04]} 47. gxf4 {[%clk
0:00:21.4]} 47... Bc6 {[%clk 0:00:01.8]} 48. c4 {[%clk 0:00:17]} 48... Kd7
{[%clk 0:00:02.3]} 49. cxb5 {[%clk 0:00:16.5]} 49... Bd5 {[%clk 0:00:01.9]} 50.
b6 {[%clk 0:00:16.3]} 50... Kc6 {[%clk 0:00:02.1]} 51. b7 {[%clk 0:00:16.6]}
51... Kc7 {[%clk 0:00:02.2]} 52. b5 {[%clk 0:00:17.2]} 52... Kb8 {[%clk
0:00:02.6]} 53. b6 {[%clk 0:00:16.2]} 53... Bg2 {[%clk 0:00:02.2]} 54. Kxe6
{[%clk 0:00:15.9]} 1-0